Cogmind - Beta 15 @@@ ROGUE MODE // 2025.07.04 @ 20:14:29 Player: beans Result: Destroyed by NO-32B(h) with Bolt Gun Performance ------------- Evolutions (0) 0 Regions Visited (4) 800 Robots Destroyed (19) 95 Value Destroyed (561) 561 Prototype IDs (0) 0 Alien Tech Used (0) 0 Bonus (800) 800 TOTAL SCORE: 2256 Bonus ------- Registered with UFD 300 Met Optimus in HQ 500 Cogmind --------- Core Integrity 0/250 Matter 300/300 Energy 39/100 System Corruption 2% Temperature Cool (0) Movement Walking (90) Location -8/Scraptown Parts ------- > --- POWER (1) -------- (None) > --- PROPULSION (2) --- VSS Leg (fused) > --- UTILITY (2) ------ Improved Signal Interpreter Authchip [Weapon] > --- WEAPON (2) ------- (None) > --- INVENTORY (5) ---- Makeshift Salvage Targeting Computer Light Assault Rifle Barrage Gun DRS Beacon (Ready) Peak State ------------ > --- POWER ------------ Makeshift Power Source > --- PROPULSION ------- VSS Leg > --- UTILITY ---------- Improved Signal Interpreter Authchip [Weapon] > --- WEAPON ----------- Ion Cannon Barrage Gun > --- INVENTORY -------- Ion Cannon Light Assault Rifle DRS Beacon [Rating: 21] Favorites ----------- Power Makeshift Power Source Engine Makeshift Power Source Power Core Light Nuclear Core Propulsion VSS Leg Treads Light Treads Leg VSS Leg Hover Unit Hover Unit Utility Authchip [Weapon] Processor Advanced Visual Processing Unit Hackware Authchip [Weapon] Weapon Ion Cannon Energy Cannon Ion Cannon Ballistic Gun Barrage Gun Launcher Subdweller Shrapnel Launcher Build | -11 -10 -10 -8 -8 ------- Run | Yrd Mat Sub Rec Scr Slots Evolved . | . . . . . Power . | . . . . . Propulsion . | . . . . . Utility . | . . . . . Weapon . | . . . . . Parts Attached 20 | 6 3 4 5 2 Power 4 | 1 1 1 . 1 Engine 3 | 1 . 1 . 1 Core 1 | . 1 . . . Reactor . | . . . . . Propulsion 5 | 2 2 . 1 . Treads 2 | 2 . . . . Leg 1 | . . . 1 . Wheel . | . . . . . Hover 2 | . 2 . . . Flight . | . . . . . Utility 3 | . . . 2 1 Device . | . . . . . Storage . | . . . . . Processor 2 | . . . 1 1 Hackware 1 | . . . 1 . Protection . | . . . . . Artifact . | . . . . . Weapon 8 | 3 . 3 2 . Energy Gun . | . . . . . Energy Cannon 3 | . . 1 2 . Ballistic Gun 4 | 3 . 1 . . Ballistic Cannon . | . . . . . Launcher 1 | . . 1 . . Special Weapon . | . . . . . Impact Weapon . | . . . . . Slashing Weapon . | . . . . . Piercing Weapon . | . . . . . Special Melee Weapon . | . . . . . Unidentified Prototypes . | . . . . . Corrupted Parts 1 | . . . 1 . System Corruption 2 | . . . 2 . Parts Lost 9 | . . 6 . 3 Power 2 | . . 1 . 1 Propulsion 2 | . . 2 . . Utility . | . . . . . Weapon 5 | . . 3 . 2 Highest Loss Streak 4 | . . 4 . 2 To Critical Strikes . | . . . . . Average Backups 3 | 1 2 3 3 4 Power . | . . 1 . . Propulsion . | . . . . . Utility . | . . . . . Weapon 2 | 1 1 1 2 4 Tool/Special . | . . . . . Unused Backups 1 | . . . 1 . Power . | . . . . . Propulsion 1 | . . . 1 . Utility . | . . . . . Weapon . | . . . . . Tool/Special . | . . . . . Average Slot Usage (%) 63 | . 71 49 77 58 Engine 11 | . 8 6 14 13 Core 1 | . 5 5 . . Treads 3 | . 10 9 1 . Leg 8 | . . . 12 14 Hover 1 | . 17 . . . Processor 8 | . . . 12 14 Hackware 7 | . . . 8 14 Energy Cannon 12 | . . 13 23 1 Ballistic Gun 3 | . 28 1 4 . Launcher 3 | . . 13 . . Peak Build Rating 21 | 5 7 10 20 21 Average Rating 13 | 3 5 7 17 15 On Entrance 7 | . 5 7 10 15 Naked Turns . | . . . . . Heaviest Build 21 | 8 8 21 16 13 Greatest Support 40 | 40 40 20 20 12 Greatest Overweight (x) 6 | . . 6 1 1 Average Overweight (x) . | . . 1 . . Largest Inventory Capacity 5 | 5 5 5 5 5 Average Capacity 5 | 5 5 5 5 5 Most Carried 5 | 4 3 5 5 5 Average Carried 3 | 1 2 3 3 4 Final Capacity 5 | 5 5 5 5 5 Final Carried 5 | 1 3 3 5 4 Class Distribution -------------------- 100% | Mutant Dominant Class ---------------- Mutant | -10/Materials Mutant | -10/Subcaves Mutant | -8/Recycling Mutant | -8/Scraptown Resources | -11 -10 -10 -8 -8 ----------- Run | Yrd Mat Sub Rec Scr Matter Collected 958 | 260 94 247 59 298 Remotely . | . . . . . Salvage Created 630 | . 259 242 59 70 Parts 42 | . 17 17 5 3 Haulers Intercepted . | . . . . . Recyclers Shooed 2 | . 2 . . . Parts Field Recycled . | . . . . . Retrieved Matter . | . . . . . Parts Self-Destructed 13 | . . 13 . . Prevented . | . . . . . Kills | -11 -10 -10 -8 -8 ------- Run | Yrd Mat Sub Rec Scr Combat Hostiles Destroyed 18 | . 5 11 1 1 Guns 7 | . 5 2 . . Cannons 6 | . . 4 1 1 AOE 5 | . . 5 . . Classes Destroyed 6 | . 3 2 . 1 Recycler 1 | . 1 . . . Swarmer 6 | . 2 4 . . Grunt 5 | . 3 2 . . Sentry 2 | . . 1 1 . Subdweller 4 | . . 4 . . Scrapper 1 | . . . . 1 Best Kill Streak 5 | . 5 3 1 1 Combat Bots Only 5 | . 5 3 1 1 Max Kills in Single Turn 2 | . 2 1 1 1 Gunslinging 1 | . 1 . . . Exploded 1 | . . 1 . . Melee . | . . . . . Uniques/NPCs Destroyed . | . . . . . Combat | -11 -10 -10 -8 -8 -------- Run | Yrd Mat Sub Rec Scr Hostile Shots Fired 89 | . 19 57 2 11 Missed 32 | . 8 22 1 1 Hits 57 | . 11 35 1 10 Projectile 57 | . 11 35 1 10 AOE 2 | . . 2 . . Critical Strikes 1 | . . 1 . . Damage Taken 956 | . 123 637 15 181 Core 256 | . 67 128 . 61 Absorbed by Shields . | . . . . . Core Remaining (%) 100 | 100 . . . . Volleys Fired 55 | . 16 28 3 8 Largest 2 | . 2 2 2 2 Hottest 120 | . 40 120 120 120 Shots Fired 101 | . 32 49 4 16 Gun 48 | . 32 11 . 5 Cannon 35 | . . 20 4 11 Launcher 18 | . . 18 . . Special . | . . . . . Kinetic 66 | . 32 29 . 5 Thermal 35 | . . 20 4 11 Explosive . | . . . . . Electromagnetic . | . . . . . Robot Hit Streak 10 | . 10 4 3 10 Robot Miss Streak 4 | . 4 1 . 2 Penetration Max . | . . . . . Secondary Targets 3 | . 3 . . . Max Gunslinging Chain 1 | . 1 . . . Shots Hit Robots 48 | . 20 15 1 12 Core Hits 28 | . 9 16 1 2 Critical Kills 1 | . 1 . . . Critical Parts Destroyed . | . . . . . Critical Strikes 1 | . 1 . . . Destroy 1 | . 1 . . . Melee Attacks . | . . . . . Impact . | . . . . . Slashing . | . . . . . Piercing . | . . . . . Sneak Attacks . | . . . . . Combat Hostiles . | . . . . . Follow-up Attacks . | . . . . . Damage Inflicted 1526 | . 213 1038 22 253 Guns 389 | . 213 105 . 71 Cannons 366 | . . 162 22 182 Explosions 771 | . . 771 . . Melee . | . . . . . Ramming . | . . . . . Kinetic 1160 | . 213 876 . 71 Thermal 366 | . . 162 22 182 Explosive . | . . . . . Electromagnetic . | . . . . . Impact . | . . . . . Slashing . | . . . . . Piercing . | . . . . . Highest Corruption 2 | . . . 2 2 Average Corruption 2 | . . . 2 2 Corruption Purged . | . . . . . Corruption Blocked . | . . . . . Effects 34 | . . . 12 22 Message Errors 11 | . . . 3 8 Matter Fused 7 | . . . 2 5 Heat Flow Errors 4 | . . . 2 2 Energy Discharges 4 | . . . 1 3 Parts Fused 1 | . . . 1 . Data Loss (minor) 5 | . . . 2 3 Data Loss (major) 2 | . . . 1 1 Overload Shots . | . . . . . Overflow Damage 18 | . . 18 . . Projectiles 15 | . . 15 . . Explosions 3 | . . 3 . . Melee . | . . . . . Knockbacks . | . . . . . Impact . | . . . . . Kinetic . | . . . . . Secondary . | . . . . . Self-Inflicted Damage 110 | . . 110 . . Shots 4 | . . 4 . . Rammed 1 | . 1 . . . Targets Rammed 1 | . 1 . . . Kicked . | . . . . . Crushed . | . . . . . Highest Temperature 198 | . 14 44 198 174 Average Temperature 44 | . 7 14 75 59 Received Heat Transfer 228 | . 51 96 9 72 Siege Activations . | . . . . . Martial Activations . | . . . . . Shielding Activations . | . . . . . Robots Disrupted . | . . . . . Combat Hostiles . | . . . . . Robots Corrupted . | . . . . . Combat Hostiles . | . . . . . Parts Fried . | . . . . . Impact Corruptions . | . . . . . Robots Melted . | . . . . . Combat Hostiles . | . . . . . Parts Melted 2 | . . . . 2 Heat Transferred 471 | . . 222 37 212 Parts Sabotaged . | . . . . . Parts Stolen . | . . . . . Parts Stripped . | . . . . . Power Chain Reactions . | . . . . . Alert | -11 -10 -10 -8 -8 ------- Run | Yrd Mat Sub Rec Scr Maximum Alert Level . | . . . . . Low Security (%) 100 | 100 100 . 100 . Level 1 . | . . . . . Level 2 . | . . . . . Level 3 . | . . . . . Level 4 . | . . . . . Level 5 . | . . . . . High Security . | . . . . . Max Security . | . . . . . Peak Influence 100 | . 100 . 68 . Initial 68 | . . . 68 . Average 9 | . 37 . 4 . Influence Increases 391 | . 115 255 21 . Destroy 0b10 Robot/C 260 | . 100 140 20 . Destroy 0b10 Robot/NC 5 | . 5 . . . Destroy Leader 20 | . 10 10 . . Destroy Structure 1 | . . . 1 . Lose Combat Pursuer 105 | . . 105 . . Influence Decreases 391 | . 65 162 164 . Entered New Map 100 | . . 25 75 . Time Decay 266 | . 65 112 89 . Lost Part 25 | . . 25 . . Squads Dispatched 1 | . 1 . . . Investigation . | . . . . . Extermination . | . . . . . Reinforcement 1 | . 1 . . . Assault . | . . . . . Garrison . | . . . . . Intercept . | . . . . . Searches Triggered . | . . . . . Construction Impeded . | . . . . . Haulers Reinforced . | . . . . . Active Scanning Responses . | . . . . . Cargo Convoy Interrupts . | . . . . . Stealth | -11 -10 -10 -8 -8 --------- Run | Yrd Mat Sub Rec Scr Distress Signals 1 | . 1 . . . Communications Jammed . | . . . . . Distress Signals . | . . . . . Times Spotted 43 | . 11 16 1 15 Peak Tracking Total 6 | . 3 6 1 5 Tactical Retreats 2 | . . 2 . . Traps | -11 -10 -10 -8 -8 ------- Run | Yrd Mat Sub Rec Scr Traps Triggered . | . . . . . Indirectly . | . . . . . Trap Hack Attempts . | . . . . . Triggered . | . . . . . Disarmed . | . . . . . Reprogrammed . | . . . . . Reused . | . . . . . Traps Extracted . | . . . . . Installed . | . . . . . Triggered . | . . . . . Machines | -11 -10 -10 -8 -8 ---------- Run | Yrd Mat Sub Rec Scr Machines Disabled 2 | . . 2 . . Max in Single Turn 1 | . . 1 . . Machines Repaired . | . . . . . Machines Dismantled . | . . . . . Machines Sabotaged . | . . . . . Overloaded Fab Kills . | . . . . . Hacking | -11 -10 -10 -8 -8 --------- Run | Yrd Mat Sub Rec Scr Machines Accessed . | . . . . . Terminals . | . . . . . Fabricators . | . . . . . Repair Stations . | . . . . . Recycling Units . | . . . . . Scanalyzers . | . . . . . Garrison Access . | . . . . . Total Hacks . | . . . . . Successful . | . . . . . Failed . | . . . . . Catastrophic . | . . . . . Database Lockouts . | . . . . . Manual . | . . . . . Terminals . | . . . . . Fabricators . | . . . . . Repair Stations . | . . . . . Recycling Units . | . . . . . Scanalyzers . | . . . . . Garrison Access . | . . . . . Terminal Hacks . | . . . . . Fabricator Hacks . | . . . . . Repair Station Hacks . | . . . . . Recycling Unit Hacks . | . . . . . Scanalyzer . | . . . . . Garrison Access Hacks . | . . . . . Unauthorized Hacks . | . . . . . Terminals . | . . . . . Fabricators . | . . . . . Repair Stations . | . . . . . Recycling Units . | . . . . . Scanalyzers . | . . . . . Garrison Access . | . . . . . Data Cores Recovered . | . . . . . Used . | . . . . . Hacking Detections . | . . . . . Full Trace Events . | . . . . . Feedback Events . | . . . . . Feedback Blocked . | . . . . . Robot Schematics Acquired . | . . . . . Robots Built . | . . . . . Authchips . | . . . . . Time . | . . . . . Total Robot Build Rating . | . . . . . Part Schematics Acquired . | . . . . . Parts Built . | . . . . . Authchips . | . . . . . Time . | . . . . . Total Part Build Rating . | . . . . . Parts Repaired . | . . . . . Time . | . . . . . Parts Recycled . | . . . . . Recycled Matter . | . . . . . Retrieved Matter . | . . . . . Retrieved Components . | . . . . . Parts Scanalyzed . | . . . . . Part Schematics Acquired . | . . . . . Parts Damaged . | . . . . . Bothacking | -11 -10 -10 -8 -8 ------------ Run | Yrd Mat Sub Rec Scr Used RIF Installer . | . . . . . Robots Hacked . | . . . . . Non-combat . | . . . . . Combat . | . . . . . Robot Hacks Applied . | . . . . . Relay Couplers Released . | . . . . . Fabnet Peak Effective % . | . . . . . Robots Rewired . | . . . . . Allies Hacked . | . . . . . Hacks Repelled . | . . . . . Allies | -11 -10 -10 -8 -8 -------- Run | Yrd Mat Sub Rec Scr Total Allies . | . . . . . Largest Group . | . . . . . Highest-Rated Group . | . . . . . Highest-Rated Ally . | . . . . . Total Orders . | . . . . . Ally Attacks . | . . . . . Total Damage . | . . . . . Kills . | . . . . . Allies Corrupted . | . . . . . Allies Melted 1 | . . . . 1 Intel | -11 -10 -10 -8 -8 ------- Run | Yrd Mat Sub Rec Scr Active Infowar (turns) 1726 | . . . 1165 561 Optics 1726 | . . . 1165 561 Robot Analysis Total . | . . . . . Derelict Logs Recovered 2 | . . 2 . . Drone Launches . | . . . . . Drone Recoveries . | . . . . . Exploration | -11 -10 -10 -8 -8 ------------- Run | Yrd Mat Sub Rec Scr Turns Passed 3875 | 83 225 1030 1312 1225 Spaces Moved 2321 | 53 164 492 717 895 Core 92 | 12 . 80 . . Treads 562 | 41 39 394 88 . Legs 1524 | . . . 629 895 Wheels . | . . . . . Hover 143 | . 125 18 . . Flight . | . . . . . Fastest Speed 50 | 50 56 56 90 90 Average Speed 138 | 135 80 191 174 91 Slowest Speed 350 | 160 160 350 180 180 Overloaded Moves . | . . . . . Propulsion Burnouts . | . . . . . Robots Hopped . | . . . . . Potential Cave-ins . | . . . . . Cave-ins Triggered . | . . . . . Exploration Rate (%) 47 | 4 39 45 99 49 Regions Visited 4 Branch Regions 3 Pre-discovered Areas . | . . . . . Known Exits Taken . | . . . . . Unknown Exits Taken 4 | 1 1 1 1 . Scrap Searched 5 | . . 2 . 3 Spaces Dug 1 | . . . 1 . Terrain Destroyed 228 | . . 225 1 2 Melee . | . . . . . Projectile 6 | . . 3 1 2 AOE 222 | . . 222 . . Terrain Rammed . | . . . . . Walls Destroyed . | . . . . . Machines Disabled . | . . . . . Actions | -11 -10 -10 -8 -8 --------- Run | Yrd Mat Sub Rec Scr Total 2884 | 64 226 533 773 1288 Wait 454 | . 39 4 39 372 Move 2317 | 52 163 491 716 895 Hop . | . . . . . Pick Up 23 | 6 3 5 5 4 Fast Attach . | . . . . . Attach 16 | 5 1 5 2 3 Detach 3 | . . . 2 1 Swap 9 | 1 2 . 3 3 Drop 6 | . 1 . 3 2 Fire 55 | . 16 28 3 8 Melee . | . . . . . Ram . | . . . . . Kick . | . . . . . Crush 1 | . 1 . . . Escape Stasis . | . . . . . Rewire . | . . . . . Trap . | . . . . . Miscellaneous . | . . . . . Route ------- -11/Scrapyard -10/Materials -10/Subcaves (discovered 2 exits: [*Mat] / *Rec) -8/Recycling (discovered 2 exits: *Fac / [*Scr]) -8/Scraptown (discovered 2 exits: *Fac x2) History --------- Turn | Location | Event 5 | -11/Scrapyard | Discovered new exit (range 15) 84 | -11/Scrapyard | Entered Materials 85 | -10/Materials | Met a group of wandering Federalists 305 | -10/Materials | Discovered new exit (range 8) 309 | -10/Materials | Entered Subcaves 310 | -10/Subcaves | Continued accompanying wandering Federalists (1) 310 | -10/Subcaves | Approached by a straggling Scientist 314 | -10/Subcaves | Build established: Mutant 335 | -10/Subcaves | Ambushed by Subdweller buried in earth 343 | -10/Subcaves | Core integrity fell below 50% 371 | -10/Subcaves | Lost 4 parts (2n2w) 499 | -10/Subcaves | A swath of the cavern ceiling suddenly collapsed 702 | -10/Subcaves | Discovered new exit (range 5) 749 | -10/Subcaves | Disturbed a concealed Subdweller 987 | -10/Subcaves | Shifting Twisted Machinery released Piercing Trap 995 | -10/Subcaves | Shifting Twisted Machinery released Mak. Thermal Plating 1077 | -10/Subcaves | Learned Materials interactive machine intel 1130 | -10/Subcaves | Shifting Twisted Machinery released Sub. Laser 1133 | -10/Subcaves | Shifting Twisted Machinery released Spk. Treads 1295 | -10/Subcaves | Discovered new exit (range 14) 1339 | -10/Subcaves | Entered Recycling 1340 | -8/Recycling | Met a Zionite searching for Scraptown 1719 | -8/Recycling | Discovered new exit (range 8) 2614 | -8/Recycling | Scanned before Scraplab entrance 2640 | -8/Recycling | Entered Scraplab 2649 | -8/Recycling | Discovered new exit (range 2) 2651 | -8/Recycling | Entered Scraptown 2769 | -8/Scraptown | Visited UFD Registry 2769 | -8/Scraptown | Registered with UFD as "Slugbank" 2922 | -8/Scraptown | Discovered new exit (range 3) 2954 | -8/Scraptown | Visited Chapter 10 2982 | -8/Scraptown | Visited Observation Area 3018 | -8/Scraptown | Visited Science Guys 3063 | -8/Scraptown | Visited Scrapoid Pod Storage 3077 | -8/Scraptown | Visited Scrap Suit Storage 3115 | -8/Scraptown | Visited Junk Repository 3275 | -8/Scraptown | Visited Derelict Rescue Squad 3288 | -8/Scraptown | Found DRS Beacon 3329 | -8/Scraptown | Met Optimus 3329 | -8/Scraptown | Accepted into 0bPrime 3729 | -8/Scraptown | Civil war broke out across Scraptown 3804 | -8/Scraptown | Identified exit to Factory 3810 | -8/Scraptown | Core integrity fell below 20% 3876 | -8/Scraptown | Destroyed by NO-32B(h) with Bolt Gun Last Messages --------------- DD-HHU(x) destroyed. Slug penetrates SK-JM1(E). SK-JM1(E) cannibalizes Seismic Detector to repair Mak. Microdissipator Network. 9G-YX6(g) destroyed. 6W-70C(E) destroyed. 1V-PH0(j) suffers critical hit (Burn). 1V-PH0(j) overheating. 10-7JQ(j) destroyed. Lgt. Deuterium Engine melted. Ovr. Titanium Leg melted. 1V-PH0(j) destroyed. Acquired Mak. Salvage Targeting Computer. Acquired 70 matter. Penetrated by Bolt. Ion Cannon destroyed. Acquired 9 matter. Bolt penetrates Machine. Ion Cannon destroyed. Bolt penetrates Machine. Map ----- +----------------------------------------------------+ | #?#" """"" "#"""" ## #?????????????????????? | | &#?#" "#"" ## #??###????????????????? | | "#?# ""#" ### #? ?????????????????? | | #?# # # #? ??????????????????? | | ##?#### ########### ##### #? #??????????????????? | | ####### ########### ##### ## ##?????????????????? | | """"""" """"""""""" """"" "" "#?????????????????? | | "#?????????????????? | | "#?????????????????? | | "#?????????????????? | | "##????????????????? | | !!#?????????? | | """"""""""""""""""""""""" "## ""#?????????? | | """"""""""""""""""""""""" "#?? ""??????????? | | ##### ################" "#??? ""???????????? | | ##????????#" "#????#????????????? | | X"#????????#"" #????""???????????? | | "" "" ##????????#"" "#??? "?#????????? | | "" "" X"#??????###"" "#?? "#????????? | | " " ######### #"" "## ""?????????? | | "" g ""?????????? | | "" "## ""?????????? | | " " ######### #""= ! "#?????????????????? | | "" "" ""#??????###""!!=%["#?????????????????? | | "" "" ##????????#""%= = "#?????????????????? | | X"#????????#""@[ %["#?????????????????? | | ##????????#"" #?????????????????? | | ##### ################"" [%"##############????? | | """""""""""""""""""""""" ! ## """"""""#????? | | "" """ """""""""""""""" " " " " "#????? | | *% !%= ## "#????? | | [ / ="## &"#????? | | [%"## "#????? | | = =[ ;# ""#????? | | *%= ; " " " "#????? | | """""" "" """"""""""" """" ! ## """"""""#????? | | ######### ########### ######!=[##############????? | | "#???# #?# ##*%!;#????????????????? | | "#???## ##?# ##jh!##????????????????? | | "#???#" "#?# # # ##%= #?????????????????? | | "#???#"! !"#?# [#]! #!!##=! #?????????????????? | | #???#"! !"#?# #*=!#]]## #?????????????????? | | ##???#"! !"#?############ ############??????? | | ?????#" !"#????????????# #??????? | | ?????####X ##????????????# ##??????? | | ????????#" "#????????????# #??????? | | ????????" !"#????????????# #??????? | | ????????#######????????????# #??????? | | ???????????????????????????# ############??????? | | ???#????#################### #####?????????????? | +----------------------------------------------------+ Best States ------------- Heat Dissipation 25 Energy Generation 15 Energy Capacity 250 Matter Stores 300 Matter Capacity 300 Sight Range 20 Terrain Scan Density 10 Evasion (%) 57 Recoil Reduction 2 Authchip Count 1 Item Schematics ----------------- None Robot Schematics ------------------ None Fabricated ------------ Nothing Repaired ---------- Nothing Alien Tech Used ----------------- None Achievements -------------- None Challenges ------------ None Game ------ Seed ImpactWardroneFilter Manual? 0 Play Time 00:25:03 Cumulative 39.0 hours Start 2025.07.04 @ 19:52:21 End 2025.07.04 @ 20:14:29 Sessions 1 Manual Loads 0 Difficulty Rogue Special Mode None Game No. 184 Rogue 184 Adventurer 0 Explorer 0 Win Type - Total 0 Types 0/0/0/0/0/0/0/0/0/0 Lore% 29 Gallery% 24 Achievement% 20 Wizard Run 0 Options --------- Layout 2 ASCII 0 Keyboard 0 Movement Mouse Keybinds 0 Fullscreen 1 Font 24/Smallcaps Map View 50x44 Zoom Use 0% Tactical HUD 0 Map Filters NONE Filters NONE Steam 1 RUN: 92b84742-ea40-44f7-9351-8990cc7168fe